[Event "ONJK-B 2019"]
[Site "Borne"]
[Date "2019.08.09"]
[Round "8.15"]
[White "Van Borren, Matthijs"]
[Black "Winter, Ynse"]
[Result "1/2-1/2"]
[ECO "C01"]
[WhiteElo "1339"]
[BlackElo "1021"]
[Annotator "NA"]
[PlyCount "54"]
[EventDate "2019.08.05"]
[EventType "swiss"]
[EventCountry "NED"]
[SourceTitle "playchess.com"]
[Source "ChessBase"]
[SourceQuality "1"]
[TimeControl "5400+30"]

1. e4 {[%emt 0:00:00]} e6 {[%emt 0:00:00]} 2. Nf3 {[%emt 0:00:00]} d5 {[%emt 0:00:00]} 3. exd5 {[%emt 0:00:14]} exd5 {[%emt 0:00:00]} 4. d4 {[%emt 0:01:06]} Bg4 {[%emt 0:00:00]} 5. Be2 {[%emt 0:01:07]} Nf6 {[%emt 0:01:04]} 6. O-O {[%emt 0:01:06]} Be7 {[%emt 0:01:52]} 7. Nbd2 {[%emt 0:09:20]} O-O {[%emt 0:00:49]} 8. Ne5 {[%emt 0:01:36]} Bxe2 {[%emt 0:05:12]} 9. Qxe2 {[%emt 0:01:02]} Nbd7 {[%emt 0:00:11]} 10. Ndf3 {[%emt 0:00:47]} Ne4 {[%emt 0:03:10]} 11. Re1 {[%emt 0:10:37]} Re8 {[%emt 0:02:42]} 12. Nxd7 {[%emt 0:09:04]} Qxd7 {[%emt 0:00:11]} 13. Ne5 {[%emt 0:00:03]} Qf5 {[%emt 0:05:58]} 14. f3 {[%emt 0:03:40]} Nd6 {[%emt 0:01:29]} 15. Qd3 {[%emt 0:09:48]} Qxd3 {[%emt 0:03:28]} 16. Nxd3 {[%emt 0:02:42]} Bf6 {[%emt 0:03:16]} 17. c3 {[%emt 0:14:02]} Rxe1+ {[%emt 0:01:15]} 18. Nxe1 {[%emt 0:00:10]} Re8 {[%emt 0:00:06]} 19. Bf4 {[%emt 0:04:16]} Be7 {[%emt 0:06:05]} 20. Nd3 {[%emt 0:01:30]} g5 {[%emt 0:00:59]} 21. Be5 {[%emt 0:03:57]} f6 {[%emt 0:00:46]} 22. Bg3 {[%emt 0:00:26]} h5 {[%emt 0:12:14]} 23. Re1 {[%emt 0:04:20]} Kf7 {[%emt 0:00:34]} 24. h3 {[%emt 0:04:39]} Bf8 {[%emt 0:02:18]} 25. Rxe8 {[%emt 0:01:06]} Nxe8 {[%emt 0:00:30]} 26. Kf2 {[%emt 0:01:29]} Bd6 {[%emt 0:00:36]} 27. f4 {[%emt 0:04:19]} Kg6 {[%emt 0:09:02]} 1/2-1/2

[Event "ONJK-B 2019"]
[Site "Borne"]
[Date "2019.08.09"]
[Round "8.16"]
[White "Van Dam, Kars"]
[Black "Eijkelkamp, Hugo"]
[Result "1-0"]
[ECO "C50"]
[WhiteElo "1024"]
[BlackElo "825"]
[Annotator "NA"]
[PlyCount "117"]
[EventDate "2019.08.05"]
[EventType "swiss"]
[EventCountry "NED"]
[SourceTitle "playchess.com"]
[Source "ChessBase"]
[SourceQuality "1"]
[TimeControl "5400+30"]

1. e4 {[%emt 0:00:00]} e5 {[%emt 0:00:00]} 2. Bc4 {[%emt 0:00:00]} Nf6 {[%emt 0:00:00]} 3. d3 {[%emt 0:00:00]} h6 {[%emt 0:00:07]} 4. Nf3 {[%emt 0:00:00]} Nc6 {[%emt 0:00:27]} 5. a3 {[%emt 0:00:00]} Bc5 {[%emt 0:02:46]} 6. h3 {[%emt 0:00:31]} d6 {[%emt 0:01:50]} 7. Nc3 {[%emt 0:00:11]} Nd4 {[%emt 0:01:36]} 8. Be3 {[%emt 0:02:09]} Nxf3+ {[%emt 0:03:46]} 9. Qxf3 {[%emt 0:00:03]} Bxe3 {[%emt 0:00:19]} 10. Qxe3 {[%emt 0:01:22]} Qe7 {[%emt 0:03:41]} 11. Qg3 {[%emt 0:02:03]} O-O {[%emt 0:02:16]} 12. Qh4 {[%emt 0:02:06]} Be6 {[%emt 0:01:37]} 13. Bxe6 {[%emt 0:01:04]} Qxe6 {[%emt 0:00:10]} 14. O-O {[%emt 0:00:33]} d5 {[%emt 0:01:58]} 15. exd5 {[%emt 0:01:09]} Nxd5 {[%emt 0:00:12]} 16. Nxd5 {[%emt 0:00:08]} Qxd5 {[%emt 0:00:08]} 17. Rfe1 {[%emt 0:00:27]} f6 {[%emt 0:00:55]} 18. Qb4 {[%emt 0:01:12]} a5 {[%emt 0:05:43]} 19. Qc3 {[%emt 0:00:22]} Kh8 {[%emt 0:07:28]} 20. a4 {[%emt 0:05:59]} Rfc8 {[%emt 0:04:22]} 21. b3 {[%emt 0:00:59]} Ra6 {[%emt 0:00:56]} 22. Qd2 {[%emt 0:00:00]} c6 {[%emt 0:05:14]} 23. Kh1 {[%emt 0:00:00]} b5 {[%emt 0:03:25]} 24. axb5 {[%emt 0:00:00]} cxb5 {[%emt 0:00:24]} 25. Rec1 {[%emt 0:01:27]} e4 {[%emt 0:02:16]} 26. d4 {[%emt 0:02:53]} a4 {[%emt 0:05:20]} 27. b4 {[%emt 0:02:08]} Rac6 {[%emt 0:01:33]} 28. c3 {[%emt 0:03:41]} Kg8 {[%emt 0:08:06]} 29. Ra3 {[%emt 0:01:30]} Kf7 {[%emt 0:01:04]} 30. Kh2 {[%emt 0:02:39]} g5 {[%emt 0:00:57]} 31. g3 {[%emt 0:01:12]} Qd6 {[%emt 0:01:45]} 32. Qe2 {[%emt 0:01:43]} f5 {[%emt 0:01:09]} 33. Qxb5 {[%emt 0:00:17]} f4 {[%emt 0:05:08]} 34. Qf5+ {[%emt 0:02:42]} Kg7 {[%emt 0:02:05]} 35. Qxe4 {[%emt 0:02:35]} fxg3+ {[%emt 0:01:22]} 36. fxg3 {[%emt 0:00:05]} Ra6 {[%emt 0:00:21]} 37. Qe5+ {[%emt 0:00:53]} Qxe5 {[%emt 0:00:24]} 38. dxe5 {[%emt 0:00:02]} Kg6 {[%emt 0:03:04]} 39. g4 {[%emt 0:00:13]} Kf7 {[%emt 0:00:43]} 40. Rf1+ {[%emt 0:02:34]} Ke7 {[%emt 0:01:00]} 41. Kg3 {[%emt 0:00:57]} Re6 {[%emt 0:01:03]} 42. Re1 {[%emt 0:00:56]} Rec6 {[%emt 0:01:40]} 43. Re3 {[%emt 0:00:28]} Ke6 {[%emt 0:01:31]} 44. h4 {[%emt 0:00:40]} Rc4 {[%emt 0:01:34]} 45. hxg5 {[%emt 0:01:01]} hxg5 {[%emt 0:00:12]} 46. Kf3 {[%emt 0:00:50]} Rf4+ {[%emt 0:01:55]} 47. Kg3 {[%emt 0:00:31]} Rfc4 {[%emt 0:00:09]} 48. Kf2 {[%emt 0:04:19]} Rxg4 {[%emt 0:02:55]} 49. Rxa4 {[%emt 0:01:10]} Rf4+ {[%emt 0:01:27]} 50. Kg3 {[%emt 0:00:55]} Rcc4 {[%emt 0:02:00]} 51. Ra6+ {[%emt 0:00:10]} Kd5 {[%emt 0:00:39]} 52. e6 {[%emt 0:00:42]} Rfe4 {[%emt 0:01:47]} 53. Rd3+ {[%emt 0:01:24]} Ke5 {[%emt 0:00:52]} 54. e7 {[%emt 0:00:03]} Kf5 {[%emt 0:00:37]} 55. Rf3+ {[%emt 0:00:04]} Rf4 {[%emt 0:01:21]} 56. e8=Q {[%emt 0:00:09]} Rxf3+ {[%emt 0:00:54]} 57. Kxf3 {[%emt 0:00:06]} Rxc3+ {[%emt 0:00:06]} 58. Kf2 {[%emt 0:01:20]} Rc2+ {[%emt 0:01:04]} 59. Qe2 {[%emt 0:00:07]} 1-0

[Event "ONJK-B 2019"]
[Site "Borne"]
[Date "2019.08.10"]
[Round "9.1"]
[White "Maters, Arthur"]
[Black "Mainka, Alwin"]
[Result "1-0"]
[ECO "B72"]
[WhiteElo "2042"]
[BlackElo "1989"]
[Annotator "NA"]
[PlyCount "67"]
[EventDate "2019.08.05"]
[EventType "swiss"]
[EventCountry "NED"]
[SourceTitle "playchess.com"]
[Source "ChessBase"]
[SourceQuality "1"]
[TimeControl "5400+30"]

1. e4 {[%emt 0:00:00]} c5 {[%emt 0:00:00]} 2. Nf3 {[%emt 0:00:00]} Nc6 {[%emt 0:00:00]} 3. d4 {[%emt 0:00:00]} cxd4 {[%emt 0:00:00]} 4. Nxd4 {[%emt 0:00:03]} Nf6 {[%emt 0:00:00]} 5. Nc3 {[%emt 0:00:05]} g6 {[%emt 0:00:00]} 6. Be3 {[%emt 0:00:07]} Bg7 {[%emt 0:00:02]} 7. Bc4 {[%emt 0:00:04]} O-O {[%emt 0:00:07]} 8. Bb3 {[%emt 0:00:02]} d6 {[%emt 0:00:16]} 9. h3 {[%emt 0:00:04]} Bd7 {[%emt 0:00:36]} 10. O-O {[%emt 0:00:32]} Rc8 {[%emt 0:00:16]} 11. Re1 {[%emt 0:00:08]} a6 {[%emt 0:00:35]} 12. Nxc6 {[%emt 0:00:28]} Bxc6 {[%emt 0:00:41]} 13. Bd4 {[%emt 0:00:05]} e5 {[%emt 0:20:46]} 14. Be3 {[%emt 0:05:20]} Nxe4 {[%emt 0:00:00]} 15. Nd5 {[%emt 0:09:35]} Nc5 {[%emt 0:00:00]} 16. Qd2 {[%emt 0:00:08]} Nxb3 {[%emt 0:00:25]} 17. cxb3 {[%emt 0:00:08]} Bxd5 {[%emt 0:00:31]} 18. Qxd5 {[%emt 0:00:05]} Rc6 {[%emt 0:00:08]} 19. Rac1 {[%emt 0:02:47]} Qc7 {[%emt 0:00:18]} 20. Red1 {[%emt 0:00:06]} Rd8 {[%emt 0:00:38]} 21. b4 {[%emt 0:01:32]} Bf8 {[%emt 0:01:33]} 22. a4 {[%emt 0:01:55]} Rc8 {[%emt 0:02:25]} 23. b5 {[%emt 0:07:21]} axb5 {[%emt 0:00:15]} 24. axb5 {[%emt 0:00:01]} Rxc1 {[%emt 0:00:11]} 25. Rxc1 {[%emt 0:00:04]} Qd7 {[%emt 0:00:07]} 26. Ra1 {[%emt 0:01:14]} Rc7 {[%emt 0:05:40]} 27. Bb6 {[%emt 0:00:53]} Rc2 {[%emt 0:00:10]} 28. Ra7 {[%emt 0:00:19]} Rxb2 {[%emt 0:00:24]} 29. Rxb7 {[%emt 0:04:07]} Rxb5 {[%emt 0:00:17]} 30. Qf3 {[%emt 0:00:42]} Rb1+ {[%emt 0:01:00]} 31. Kh2 {[%emt 0:00:05]} Qe6 {[%emt 0:00:13]} 32. Rb8 {[%emt 0:00:29]} d5 {[%emt 0:00:39]} 33. Qe3 {[%emt 0:00:24]} d4 {[%emt 0:01:13]} 34. Qa3 {[%emt 0:00:44]} 1-0

[Event "ONJK-B 2019"]
[Site "Borne"]
[Date "2019.08.10"]
[Round "9.2"]
[White "Arnold, Kiri"]
[Black "Albertus, Bram"]
[Result "1/2-1/2"]
[ECO "B47"]
[WhiteElo "1590"]
[BlackElo "1841"]
[Annotator "NA"]
[PlyCount "46"]
[EventDate "2019.08.05"]
[EventType "swiss"]
[EventCountry "NED"]
[SourceTitle "playchess.com"]
[Source "ChessBase"]
[SourceQuality "1"]
[TimeControl "5400+30"]

1. e4 {[%emt 0:00:00]} c5 {[%emt 0:00:00]} 2. Nf3 {[%emt 0:00:00]} e6 {[%emt 0:00:00]} 3. d4 {[%emt 0:00:03]} cxd4 {[%emt 0:00:05]} 4. Nxd4 {[%emt 0:00:05]} Nc6 {[%emt 0:00:01]} 5. Nc3 {[%emt 0:00:19]} Qc7 {[%emt 0:00:22]} 6. g3 {[%emt 0:00:15]} a6 {[%emt 0:00:23]} 7. Bg2 {[%emt 0:00:16]} Nf6 {[%emt 0:01:26]} 8. O-O {[%emt 0:00:38]} Be7 {[%emt 0:01:45]} 9. a4 {[%emt 0:00:41]} O-O {[%emt 0:01:31]} 10. Be3 {[%emt 0:01:35]} Ne5 {[%emt 0:03:56]} 11. f4 {[%emt 0:05:51]} Nc4 {[%emt 0:01:14]} 12. Bc1 {[%emt 0:00:17]} d6 {[%emt 0:04:15]} 13. b3 {[%emt 0:03:42]} Na5 {[%emt 0:01:58]} 14. Bb2 {[%emt 0:02:25]} Rd8 {[%emt 0:19:04]} 15. Kh1 {[%emt 0:26:06]} Rb8 {[%emt 0:04:26]} 16. Qe2 {[%emt 0:03:43]} e5 {[%emt 0:08:59]} 17. Nf5 {[%emt 0:02:44]} Bxf5 {[%emt 0:01:40]} 18. exf5 {[%emt 0:00:15]} Nc6 {[%emt 0:02:48]} 19. Ne4 {[%emt 0:07:42]} Nxe4 {[%emt 0:13:11]} 20. Qxe4 {[%emt 0:00:39]} d5 {[%emt 0:01:22]} 21. Bxe5 {[%emt 0:03:32]} Qd7 {[%emt 0:01:25]} 22. Qf3 {[%emt 0:04:44]} Rbc8 {[%emt 0:01:27]} 23. Rad1 {[%emt 0:14:33]} Qxf5 {[%emt 0:05:07]} 1/2-1/2

[Event "ONJK-B 2019"]
[Site "Borne"]
[Date "2019.08.10"]
[Round "9.3"]
[White "Ekker, Laurens"]
[Black "Baselmans, Daan"]
[Result "1/2-1/2"]
[ECO "C01"]
[WhiteElo "1614"]
[BlackElo "1720"]
[Annotator "NA"]
[PlyCount "36"]
[EventDate "2019.08.05"]
[EventType "swiss"]
[EventCountry "NED"]
[SourceTitle "playchess.com"]
[Source "ChessBase"]
[SourceQuality "1"]
[TimeControl "5400+30"]

1. e4 {[%emt 0:00:00]} e6 {[%emt 0:00:00]} 2. d4 {[%emt 0:00:00]} d5 {[%emt 0:00:00]} 3. exd5 {[%emt 0:00:00]} exd5 {[%emt 0:00:00]} 4. c4 {[%emt 0:00:00]} Nf6 {[%emt 0:00:00]} 5. Nc3 {[%emt 0:00:00]} Be7 {[%emt 0:00:00]} 6. Nf3 {[%emt 0:00:00]} O-O {[%emt 0:00:14]} 7. Be2 {[%emt 0:00:29]} dxc4 {[%emt 0:00:06]} 8. Bxc4 {[%emt 0:00:10]} Nbd7 {[%emt 0:00:56]} 9. O-O {[%emt 0:00:53]} Nb6 {[%emt 0:00:12]} 10. Bb3 {[%emt 0:00:53]} c6 {[%emt 0:00:20]} 11. Re1 {[%emt 0:04:58]} Nbd5 {[%emt 0:01:31]} 12. Nxd5 {[%emt 0:15:08]} Nxd5 {[%emt 0:00:12]} 13. Bxd5 {[%emt 0:02:39]} cxd5 {[%emt 0:00:05]} 14. Qb3 {[%emt 0:00:09]} b6 {[%emt 0:07:39]} 15. Bf4 {[%emt 0:04:18]} Bb7 {[%emt 0:06:55]} 16. Rac1 {[%emt 0:10:58]} Bd6 {[%emt 0:00:22]} 17. Bxd6 {[%emt 0:02:16]} Qxd6 {[%emt 0:00:35]} 18. Qe3 {[%emt 0:12:44]} Rac8 {[%emt 0:02:21]} 1/2-1/2

[Event "ONJK-B 2019"]
[Site "Borne"]
[Date "2019.08.10"]
[Round "9.4"]
[White "Rogge, Parcival"]
[Black "Molanus, Lennart"]
[Result "1/2-1/2"]
[ECO "B50"]
[WhiteElo "1743"]
[BlackElo "1619"]
[Annotator "NA"]
[PlyCount "24"]
[EventDate "2019.08.05"]
[EventType "swiss"]
[EventCountry "NED"]
[SourceTitle "playchess.com"]
[Source "ChessBase"]
[SourceQuality "1"]
[TimeControl "5400+30"]

1. e4 {[%emt 0:00:00]} c5 {[%emt 0:00:00]} 2. Nf3 {[%emt 0:00:00]} d6 {[%emt 0:00:00]} 3. c3 {[%emt 0:00:00]} e5 {[%emt 0:05:29]} 4. Bc4 {[%emt 0:05:18]} Be7 {[%emt 0:05:05]} 5. h3 {[%emt 0:03:02]} Nf6 {[%emt 0:00:22]} 6. d3 {[%emt 0:00:24]} Bd7 {[%emt 0:02:21]} 7. Qb3 {[%emt 0:07:01]} O-O {[%emt 0:02:57]} 8. Qxb7 {[%emt 0:17:20]} Nc6 {[%emt 0:02:04]} 9. Qa6 {[%emt 0:04:55]} Na5 {[%emt 0:05:41]} 10. Na3 {[%emt 0:01:12]} Bc8 {[%emt 0:00:49]} 11. Qb5 {[%emt 0:00:29]} Bd7 {[%emt 0:00:53]} 12. Qa6 {[%emt 0:00:08]} Bc8 {[%emt 0:00:03]} 1/2-1/2

[Event "ONJK-B 2019"]
[Site "Borne"]
[Date "2019.08.10"]
[Round "9.5"]
[White "Klaren, Oscar"]
[Black "De Putter, Nina"]
[Result "1-0"]
[ECO "B01"]
[WhiteElo "1761"]
[BlackElo "1631"]
[Annotator "NA"]
[PlyCount "87"]
[EventDate "2019.08.05"]
[EventType "swiss"]
[EventCountry "NED"]
[SourceTitle "playchess.com"]
[Source "ChessBase"]
[SourceQuality "1"]
[TimeControl "5400+30"]

1. e4 {[%emt 0:00:00]} d5 {[%emt 0:00:00]} 2. exd5 {[%emt 0:00:00]} Nf6 {[%emt 0:00:00]} 3. d4 {[%emt 0:00:00]} Nxd5 {[%emt 0:00:00]} 4. Nf3 {[%emt 0:00:00]} g6 {[%emt 0:00:10]} 5. c4 {[%emt 0:00:03]} Nb6 {[%emt 0:00:07]} 6. Nc3 {[%emt 0:00:19]} Bg7 {[%emt 0:00:33]} 7. Be3 {[%emt 0:00:31]} O-O {[%emt 0:00:08]} 8. Be2 {[%emt 0:00:14]} Nc6 {[%emt 0:00:08]} 9. h3 {[%emt 0:01:07]} e5 {[%emt 0:02:38]} 10. d5 {[%emt 0:01:55]} Ne7 {[%emt 0:02:49]} 11. O-O {[%emt 0:00:59]} Nf5 {[%emt 0:04:48]} 12. Rc1 {[%emt 0:02:23]} Re8 {[%emt 0:04:40]} 13. Qd2 {[%emt 0:01:38]} Bd7 {[%emt 0:05:25]} 14. Rfd1 {[%emt 0:05:06]} Nxe3 {[%emt 0:21:24]} 15. Qxe3 {[%emt 0:01:22]} f5 {[%emt 0:01:01]} 16. c5 {[%emt 0:01:08]} f4 {[%emt 0:03:37]} 17. Qd2 {[%emt 0:03:21]} Na4 {[%emt 0:07:50]} 18. Nxa4 {[%emt 0:00:20]} Bxa4 {[%emt 0:00:09]} 19. b3 {[%emt 0:00:08]} Bd7 {[%emt 0:00:08]} 20. Bc4 {[%emt 0:00:27]} Kh8 {[%emt 0:00:44]} 21. Ne1 {[%emt 0:04:53]} Qg5 {[%emt 0:04:06]} 22. Nf3 {[%emt 0:04:56]} Qh5 {[%emt 0:02:35]} 23. Ne1 {[%emt 0:03:59]} Bh6 {[%emt 0:02:40]} 24. f3 {[%emt 0:03:58]} Qg5 {[%emt 0:06:10]} 25. Kh1 {[%emt 0:01:10]} Qg3 {[%emt 0:05:37]} 26. Bd3 {[%emt 0:03:26]} Rad8 {[%emt 0:03:47]} 27. Be4 {[%emt 0:01:10]} Bc8 {[%emt 0:04:35]} 28. Rc2 {[%emt 0:02:40]} Bf8 {[%emt 0:03:27]} 29. Qc3 {[%emt 0:11:40]} Qg5 {[%emt 0:07:28]} 30. b4 {[%emt 0:04:17]} a6 {[%emt 0:02:21]} 31. Rcd2 {[%emt 0:00:41]} Qf6 {[%emt 0:00:23]} 32. Nc2 {[%emt 0:02:39]} h5 {[%emt 0:04:21]} 33. Qd3 {[%emt 0:00:40]} Kg7 {[%emt 0:00:28]} 34. Qf1 {[%emt 0:02:14]} g5 {[%emt 0:00:46]} 35. Na3 {[%emt 0:01:47]} g4 {[%emt 0:00:26]} 36. Nc4 {[%emt 0:00:20]} Qh4 {[%emt 0:00:38]} 37. Qg1 {[%emt 0:01:51]} Kh8 {[%emt 0:01:07]} 38. d6 {[%emt 0:00:40]} cxd6 {[%emt 0:00:16]} 39. Nxd6 {[%emt 0:00:19]} Bxd6 {[%emt 0:00:06]} 40. Rxd6 {[%emt 0:00:09]} Rxd6 {[%emt 0:00:37]} 41. Rxd6 {[%emt 0:00:07]} gxh3 {[%emt 0:00:23]} 42. Rh6+ {[%emt 0:00:10]} Kg7 {[%emt 0:00:15]} 43. gxh3+ {[%emt 0:00:05]} Qg3 {[%emt 0:00:07]} 44. Rg6+ {[%emt 0:00:08]} 1-0

[Event "ONJK-B 2019"]
[Site "Borne"]
[Date "2019.08.10"]
[Round "9.6"]
[White "Olree, Alex"]
[Black "Van Hille, Clara"]
[Result "1/2-1/2"]
[ECO "E06"]
[WhiteElo "1411"]
[BlackElo "1391"]
[Annotator "NA"]
[PlyCount "43"]
[EventDate "2019.08.05"]
[EventType "swiss"]
[EventCountry "NED"]
[SourceTitle "playchess.com"]
[Source "ChessBase"]
[SourceQuality "1"]
[TimeControl "5400+30"]

1. d4 {[%emt 0:00:00]} d5 {[%emt 0:13:34]} 2. c4 {[%emt 0:00:00]} e6 {[%emt 0:00:04]} 3. Nf3 {[%emt 0:00:00]} Nf6 {[%emt 0:00:10]} 4. g3 {[%emt 0:00:00]} Be7 {[%emt 0:00:13]} 5. Bg2 {[%emt 0:00:00]} O-O {[%emt 0:00:08]} 6. O-O {[%emt 0:00:00]} b6 {[%emt 0:00:10]} 7. cxd5 {[%emt 0:02:02]} exd5 {[%emt 0:00:41]} 8. Ne5 {[%emt 0:01:44]} Be6 {[%emt 0:02:45]} 9. Qc2 {[%emt 0:02:09]} Nfd7 {[%emt 0:02:20]} 10. Nc6 {[%emt 0:05:47]} Nxc6 {[%emt 0:01:09]} 11. Qxc6 {[%emt 0:00:02]} Nf6 {[%emt 0:00:24]} 12. Bf4 {[%emt 0:12:04]} Rc8 {[%emt 0:02:05]} 13. Nd2 {[%emt 0:07:03]} Qd7 {[%emt 0:09:18]} 14. Rac1 {[%emt 0:06:40]} Bd6 {[%emt 0:03:48]} 15. Bxd6 {[%emt 0:06:19]} cxd6 {[%emt 0:05:29]} 16. Qxd7 {[%emt 0:00:06]} Bxd7 {[%emt 0:00:07]} 17. e4 {[%emt 0:01:12]} dxe4 {[%emt 0:01:37]} 18. Nxe4 {[%emt 0:00:05]} Nxe4 {[%emt 0:01:11]} 19. Bxe4 {[%emt 0:00:02]} Rfe8 {[%emt 0:01:09]} 20. Bd3 {[%emt 0:01:06]} Be6 {[%emt 0:00:52]} 21. b3 {[%emt 0:02:44]} Bd5 {[%emt 0:03:54]} 22. Rfd1 {[%emt 0:05:12]} 1/2-1/2

[Event "ONJK-B 2019"]
[Site "Borne"]
[Date "2019.08.10"]
[Round "9.7"]
[White "Nopper, Louis"]
[Black "Borgelioen, Elise"]
[Result "1-0"]
[ECO "A28"]
[WhiteElo "1579"]
[BlackElo "1342"]
[Annotator "NA"]
[PlyCount "61"]
[EventDate "2019.08.05"]
[EventType "swiss"]
[EventCountry "NED"]
[SourceTitle "playchess.com"]
[Source "ChessBase"]
[SourceQuality "1"]
[TimeControl "5400+30"]

1. c4 {[%emt 0:00:00]} e5 {[%emt 0:00:00]} 2. Nc3 {[%emt 0:00:26]} Nc6 {[%emt 0:00:48]} 3. e3 {[%emt 0:01:07]} Nf6 {[%emt 0:01:05]} 4. Nf3 {[%emt 0:00:47]} Bb4 {[%emt 0:01:07]} 5. Qc2 {[%emt 0:04:39]} Bxc3 {[%emt 0:05:30]} 6. bxc3 {[%emt 0:00:40]} O-O {[%emt 0:02:30]} 7. d4 {[%emt 0:03:55]} d6 {[%emt 0:03:00]} 8. Bd2 {[%emt 0:02:22]} Bg4 {[%emt 0:06:22]} 9. Be2 {[%emt 0:11:27]} e4 {[%emt 0:05:11]} 10. Ng1 {[%emt 0:00:42]} Bf5 {[%emt 0:05:28]} 11. h4 {[%emt 0:08:53]} Ne7 {[%emt 0:05:19]} 12. Nh3 {[%emt 0:02:47]} Ng6 {[%emt 0:03:05]} 13. h5 {[%emt 0:05:08]} Ne7 {[%emt 0:07:14]} 14. Nf4 {[%emt 0:02:04]} c6 {[%emt 0:02:22]} 15. Rg1 {[%emt 0:03:00]} h6 {[%emt 0:03:44]} 16. g4 {[%emt 0:03:06]} Bh7 {[%emt 0:01:15]} 17. Bf1 {[%emt 0:03:03]} d5 {[%emt 0:06:00]} 18. c5 {[%emt 0:04:23]} Nc8 {[%emt 0:03:36]} 19. Qa4 {[%emt 0:06:03]} Qd7 {[%emt 0:03:48]} 20. Bh3 {[%emt 0:01:22]} Qc7 {[%emt 0:03:10]} 21. g5 {[%emt 0:05:20]} hxg5 {[%emt 0:00:59]} 22. Rxg5 {[%emt 0:00:16]} b6 {[%emt 0:02:01]} 23. O-O-O {[%emt 0:05:11]} bxc5 {[%emt 0:01:35]} 24. Rdg1 {[%emt 0:00:22]} g6 {[%emt 0:00:58]} 25. hxg6 {[%emt 0:00:27]} fxg6 {[%emt 0:00:13]} 26. Nxg6 {[%emt 0:04:09]} Bxg6 {[%emt 0:00:15]} 27. Rxg6+ {[%emt 0:01:08]} Kh8 {[%emt 0:00:29]} 28. Rh6+ {[%emt 0:01:25]} Nh7 {[%emt 0:00:13]} 29. Be6 {[%emt 0:00:19]} Ne7 {[%emt 0:00:55]} 30. Rgh1 {[%emt 0:00:16]} Qd8 {[%emt 0:00:23]} 31. Rxh7# {[%emt 0:00:09]} 1-0

[Event "ONJK-B 2019"]
[Site "Borne"]
[Date "2019.08.10"]
[Round "9.8"]
[White "Li-Behn, Tobias"]
[Black "Neirynck, Arthur"]
[Result "1/2-1/2"]
[ECO "A58"]
[WhiteElo "1264"]
[BlackElo "1514"]
[Annotator "NA"]
[PlyCount "69"]
[EventDate "2019.08.05"]
[EventType "swiss"]
[EventCountry "NED"]
[SourceTitle "playchess.com"]
[Source "ChessBase"]
[SourceQuality "1"]
[TimeControl "5400+30"]

1. d4 {[%emt 0:00:00]} Nf6 {[%emt 0:03:00]} 2. c4 {[%emt 0:00:00]} c5 {[%emt 0:00:07]} 3. d5 {[%emt 0:00:00]} b5 {[%emt 0:00:05]} 4. cxb5 {[%emt 0:01:32]} a6 {[%emt 0:00:42]} 5. Nc3 {[%emt 0:01:54]} axb5 {[%emt 0:04:00]} 6. Nxb5 {[%emt 0:00:05]} Ba6 {[%emt 0:00:19]} 7. Nc3 {[%emt 0:02:31]} g6 {[%emt 0:00:38]} 8. g3 {[%emt 0:04:18]} Bg7 {[%emt 0:02:05]} 9. Bg2 {[%emt 0:00:20]} d6 {[%emt 0:01:01]} 10. e4 {[%emt 0:02:50]} O-O {[%emt 0:03:13]} 11. Nge2 {[%emt 0:00:18]} Nbd7 {[%emt 0:03:45]} 12. O-O {[%emt 0:00:24]} Qb6 {[%emt 0:02:45]} 13. f4 {[%emt 0:08:38]} Ra7 {[%emt 0:10:27]} 14. h3 {[%emt 0:07:45]} Rb8 {[%emt 0:04:58]} 15. Rb1 {[%emt 0:01:35]} Ne8 {[%emt 0:04:29]} 16. Rf3 {[%emt 0:06:55]} Bc4 {[%emt 0:08:00]} 17. b3 {[%emt 0:14:54]} Ba6 {[%emt 0:05:43]} 18. Qc2 {[%emt 0:04:37]} Nc7 {[%emt 0:01:15]} 19. Na4 {[%emt 0:02:33]} Qb7 {[%emt 0:04:40]} 20. Nec3 {[%emt 0:02:18]} Nb6 {[%emt 0:04:41]} 21. Bb2 {[%emt 0:07:13]} Bb5 {[%emt 0:04:25]} 22. Nxb5 {[%emt 0:05:28]} Nxb5 {[%emt 0:00:56]} 23. Bxg7 {[%emt 0:00:06]} Kxg7 {[%emt 0:00:36]} 24. Nxb6 {[%emt 0:01:37]} Qxb6 {[%emt 0:01:46]} 25. Kh2 {[%emt 0:02:11]} Nd4 {[%emt 0:02:04]} 26. Qb2 {[%emt 0:00:13]} Kg8 {[%emt 0:00:33]} 27. Rf2 {[%emt 0:00:49]} Qb4 {[%emt 0:01:58]} 28. Qd2 {[%emt 0:02:43]} Ra3 {[%emt 0:08:11]} 29. Qxb4 {[%emt 0:02:59]} Rxb4 {[%emt 0:00:18]} 30. e5 {[%emt 0:02:28]} f6 {[%emt 0:02:30]} 31. exf6 {[%emt 0:01:54]} exf6 {[%emt 0:00:15]} 32. Re1 {[%emt 0:00:07]} Kf7 {[%emt 0:00:23]} 33. h4 {[%emt 0:01:29]} f5 {[%emt 0:02:50]} 34. Kh3 {[%emt 0:01:04]} h5 {[%emt 0:01:51]} 35. Kh2 {[%emt 0:02:25]} 1/2-1/2

[Event "ONJK-B 2019"]
[Site "Borne"]
[Date "2019.08.10"]
[Round "9.9"]
[White "Hubers, Daan"]
[Black "Tiggelman, Laura"]
[Result "1/2-1/2"]
[ECO "E61"]
[WhiteElo "1512"]
[BlackElo "1436"]
[Annotator "NA"]
[PlyCount "80"]
[EventDate "2019.08.05"]
[EventType "swiss"]
[EventCountry "NED"]
[SourceTitle "playchess.com"]
[Source "ChessBase"]
[SourceQuality "1"]
[TimeControl "5400+30"]

1. d4 {[%emt 0:00:00]} Nf6 {[%emt 0:00:00]} 2. Bf4 {[%emt 0:00:00]} g6 {[%emt 0:00:00]} 3. e3 {[%emt 0:00:00]} Bg7 {[%emt 0:00:08]} 4. c4 {[%emt 0:00:00]} d6 {[%emt 0:00:07]} 5. Nc3 {[%emt 0:00:01]} O-O {[%emt 0:00:04]} 6. Bd3 {[%emt 0:00:07]} Nbd7 {[%emt 0:00:12]} 7. Nf3 {[%emt 0:00:44]} Re8 {[%emt 0:01:40]} 8. O-O {[%emt 0:00:55]} e5 {[%emt 0:00:40]} 9. dxe5 {[%emt 0:00:18]} dxe5 {[%emt 0:00:49]} 10. Bg5 {[%emt 0:00:53]} a5 {[%emt 0:15:19]} 11. Bc2 {[%emt 0:02:52]} h6 {[%emt 0:13:51]} 12. Bxf6 {[%emt 0:00:29]} Bxf6 {[%emt 0:01:40]} 13. Ba4 {[%emt 0:02:22]} c6 {[%emt 0:02:42]} 14. Ne4 {[%emt 0:00:27]} Bg7 {[%emt 0:04:53]} 15. Rc1 {[%emt 0:01:06]} Nb6 {[%emt 0:06:05]} 16. Qxd8 {[%emt 0:00:19]} Rxd8 {[%emt 0:00:09]} 17. Bb3 {[%emt 0:00:45]} a4 {[%emt 0:01:51]} 18. Bd1 {[%emt 0:00:35]} Bf5 {[%emt 0:00:52]} 19. Nc5 {[%emt 0:02:46]} Ra7 {[%emt 0:02:01]} 20. e4 {[%emt 0:00:40]} Bg4 {[%emt 0:01:40]} 21. h3 {[%emt 0:00:22]} Bxf3 {[%emt 0:01:39]} 22. Bxf3 {[%emt 0:00:31]} Bf8 {[%emt 0:00:46]} 23. b4 {[%emt 0:01:38]} axb3 {[%emt 0:00:09]} 24. Nxb3 {[%emt 0:00:08]} Rxa2 {[%emt 0:00:14]} 25. c5 {[%emt 0:01:58]} Nd7 {[%emt 0:00:41]} 26. Rfd1 {[%emt 0:00:38]} Raa8 {[%emt 0:00:41]} 27. Rd2 {[%emt 0:02:57]} Nf6 {[%emt 0:05:46]} 28. Rxd8 {[%emt 0:01:33]} Rxd8 {[%emt 0:00:10]} 29. Rc4 {[%emt 0:00:43]} Nd7 {[%emt 0:01:41]} 30. Bg4 {[%emt 0:01:13]} h5 {[%emt 0:00:39]} 31. Bxd7 {[%emt 0:00:46]} Rxd7 {[%emt 0:00:06]} 32. Kf1 {[%emt 0:00:17]} Kg7 {[%emt 0:06:10]} 33. Ke2 {[%emt 0:01:21]} Kf6 {[%emt 0:01:23]} 34. Ra4 {[%emt 0:00:18]} Be7 {[%emt 0:05:33]} 35. Ra7 {[%emt 0:01:11]} Ke6 {[%emt 0:02:29]} 36. f3 {[%emt 0:01:40]} h4 {[%emt 0:03:32]} 37. Ra8 {[%emt 0:02:48]} Rd8 {[%emt 0:01:41]} 38. Ra7 {[%emt 0:00:37]} Rd7 {[%emt 0:00:04]} 39. Ra8 {[%emt 0:00:06]} Rd8 {[%emt 0:00:13]} 40. Ra7 {[%emt 0:00:07]} Rd7 {[%emt 0:00:03]} 1/2-1/2